bitfinex/quotes_ETHUSD_20250326
["timestamp","ask_amount","ask_price","bid_price","bid_amount"]
[1742955387036,19.65215096,2062.2,2062.1,0.00060657]
[1742955387437,27.63870692,2062.2,2062.1,0.00060657]
[1742955387739,25.31615096,2062.2,2062.1,0.00060657]
[1742955388183,20.20215096,2062.2,2062.1,0.00060657]
[1742955392172,16.36054596,2062.2,2062.1,0.00060657]
[1742955392574,66.86054596,2062.2,2062.1,0.00060657]
[1742955394172,69.18310192,2062.2,2062.1,0.00060657]
[1742955394568,3.0,2061.7,2061.5,0.123287]
[1742955394769,12.39939296,2061.6,2061.5,0.123287]
[1742955396382,15.39939296,2061.6,2061.5,0.123287]
[1742955398179,14.83865996,2061.6,2061.5,0.123287]
[1742955398365,13.45229396,2061.6,2061.5,0.123287]
[1742955399888,18.30289396,2061.6,2061.5,0.123287]
[1742955400184,20.73772025,2061.6,2061.5,0.123287]
[1742955406394,22.07582025,2061.6,2061.5,0.123287]
[1742955408865,18.76508225,2061.6,2061.5,0.123287]
[1742955409068,69.26508225,2061.6,2061.5,0.123287]
[1742955409274,74.37908225,2061.6,2061.5,0.123287]
[1742955412803,63.89608225,2061.6,2061.5,0.123287]
[1742955413010,18.97381296,2061.6,2061.5,0.123287]
[1742955413305,23.82441296,2061.6,2061.5,0.123287]
[1742955414092,16.39492996,2061.6,2061.5,0.123287]
[1742955414300,21.24552996,2061.6,2061.5,0.123287]
[1742955414591,22.07262996,2061.6,2061.5,0.123287]
[1742955416506,22.62262996,2061.6,2061.5,0.123287]
[1742955416715,2.32255596,2061.1,2061.0,0.7559]
[1742955417010,10.10855596,2061.1,2061.0,0.7559]
[1742955417214,19.71071596,2061.1,2061.0,0.7559]
[1742955417412,15.71729796,2061.1,2061.0,0.7559]
[1742955418276,15.71729796,2061.1,2060.8,0.7559]
[1742955418484,12.16542876,2061.1,2060.8,0.7559]
[1742955418982,10.10855596,2061.1,2060.8,0.7559]
[1742955419390,3.0,2060.9,2060.8,0.7559]
[1742955419996,27.996,2061.4,2060.8,0.7559]
[1742955420208,7.779,2061.3,2060.9,0.7559]
[1742955420415,7.779,2061.3,2061.0,0.7559]
[1742955420597,3.0,2061.3,2061.0,0.7559]
[1742955420923,3.0,2061.1,2061.0,0.7559]
[1742955421713,4.778,2061.2,2061.0,0.7559]
[1742955421919,3.0,2061.1,2061.0,0.7559]
[1742955425110,3.0,2061.1,2060.5,0.7559]
[1742955425294,3.0,2061.1,2060.6,0.7559]
[1742955426711,2.32255596,2061.0,2060.6,0.7559]
[1742955430529,2.32255596,2060.8,2060.1,4.87397]
[1742955430730,2.32255596,2060.8,2060.4,0.7759]
[1742955430731,3.0,2060.6,2060.4,0.7759]
[1742955431116,5.32255596,2060.6,2060.4,0.7759]
[1742955433647,2.32255596,2060.8,2060.4,0.7759]
[1742955433944,7.769,2060.5,2060.4,0.7759]
[1742955437229,9.96551,2061.3,2060.1,4.87402]
[1742955437230,4.768,2060.7,2060.6,4.85294]
[1742955437420,7.768,2060.7,2060.6,0.7759]
[1742955438557,3.0,2060.6,2060.2,0.7759]
[1742955440154,3.0,2060.6,2060.1,0.02]
[1742955440330,2.32255596,2060.4,2060.1,0.02]
[1742955440655,3.0,2060.3,2060.1,0.02]
[1742955440851,7.773,2060.2,2060.1,0.02]
[1742955441725,0.8163,2060.7,2060.2,0.7759]
[1742955441952,7.778,2060.6,2060.5,0.7759]
[1742955443226,7.778,2060.6,2060.3,0.7759]
[1742955443842,4.778,2060.6,2060.3,0.7759]
[1742955446040,4.787,2060.8,2060.4,5.64841]
[1742955446344,3.0,2060.9,2060.4,0.7951]
[1742955446738,2.32255596,2060.8,2060.4,0.7951]
[1742955448954,2.32255596,2060.8,2060.2,0.7951]
[1742955449167,2.32255596,2060.8,2060.2,5.64898]
[1742955449345,2.32255596,2060.8,2060.2,6.70129]
[1742955450868,2.32255596,2060.8,2060.2,11.55501]
[1742955451068,2.32255596,2060.8,2060.2,11.55492]
[1742955451369,2.32255596,2060.8,2060.2,6.70113]
[1742955451867,6.08805596,2060.9,2060.3,5.64874]
[1742955452074,5.32255596,2060.9,2060.4,4.85322]
[1742955452267,5.32255596,2060.9,2060.5,5.64828]
[1742955452570,28.002,2061.0,2060.7,0.7951]
[1742955452775,0.98955902,2061.4,2060.8,0.7951]
[1742955453070,3.0,2061.2,2061.1,0.7951]
[1742955453273,4.779,2061.3,2061.1,5.64686]
[1742955453462,4.779,2061.3,2061.2,4.85154]
[1742955453653,3.0,2061.2,2060.8,4.85247]
[1742955453850,3.0,2061.2,2060.9,0.7951]
[1742955454157,3.0,2061.2,2060.4,7.17595596]
[1742955454158,2.32255596,2061.1,2060.5,9.70627]
[1742955454363,2.32255596,2061.1,2060.6,0.7951]
[1742955454760,2.32255596,2061.1,2060.6,5.64803]
[1742955455082,0.7655,2061.1,2060.7,0.7951]
[1742955455280,2.32255596,2060.9,2060.4,0.7951]
[1742955455439,4.796,2060.8,2060.4,0.7951]
[1742955455636,3.0,2060.7,2060.4,0.7951]
[1742955456443,3.0,2060.7,2060.4,5.64843]
[1742955456663,3.0,2061.0,2060.5,4.85308]
[1742955456863,5.32255596,2061.2,2060.6,0.7951]
[1742955457065,2.32255596,2061.4,2060.9,0.7951]
[1742955457267,3.08805596,2061.5,2060.9,5.64722]
[1742955457462,3.0,2061.3,2060.9,5.64722]
[1742955457663,3.0,2061.3,2061.0,4.85197]
[1742955457867,4.798,2061.3,2060.9,6.69729]
[1742955458146,4.798,2061.3,2060.9,6.69721]
[1742955459344,4.798,2061.3,2060.9,11.54925]
[1742955459643,4.798,2061.3,2060.9,11.54922]
[1742955459838,0.7782,2061.7,2061.0,4.85197]
[1742955460044,4.796,2061.6,2061.1,5.62991]
[1742955460342,3.10075596,2061.7,2061.1,5.63003]
[1742955460540,2.32255596,2061.5,2061.1,0.7783]
[1742955460768,4.795,2061.4,2061.1,0.7783]
[1742955462072,2.32255596,2061.3,2060.8,0.7783]
[1742955462866,6.3527,2061.4,2060.8,0.7783]
[1742955463080,8.67525596,2061.4,2060.8,0.7783]
[1742955464070,8.67525596,2061.4,2060.8,5.63063]
[1742955464275,8.67525596,2061.4,2060.8,0.7783]
[1742955464477,1.1675256,2061.3,2060.8,0.7783]
[1742955466384,2.32255596,2061.2,2060.8,0.7783]
[1742955467948,5.32255596,2061.2,2060.8,0.7783]
[1742955476205,1.1675256,2061.3,2060.8,0.7783]
[1742955476206,3.0,2061.3,2061.1,0.758]
[1742955476386,4.776,2061.4,2061.2,4.85154]
[1742955477375,5.32255596,2061.6,2061.2,4.85154]
[1742955477588,3.0,2061.4,2061.2,0.758]
[1742955478304,2.32255596,2061.6,2061.4,0.758]
[1742955478305,4.777,2061.6,2061.4,0.758]
[1742955478506,4.777,2061.6,2061.4,5.60903]
[1742955478677,0.7654,2062.0,2061.4,5.60903]
[1742955478678,32.771,2061.7,2061.4,5.60903]
[1742955478879,35.771,2061.7,2061.6,5.6086]
[1742955479102,27.995,2061.7,2061.6,5.6086]
[1742955479308,3.0,2061.8,2061.6,5.6086]
[1742955479511,3.0,2061.8,2061.6,0.758]
[1742955479685,5.32255596,2061.8,2061.6,0.758]
[1742955480509,6.33231156,2061.8,2061.6,0.758]
[1742955480723,11.18251156,2061.8,2061.1,0.758]
[1742955481016,2.32255596,2061.2,2060.8,0.758]
[1742955481192,2.32255596,2061.2,2060.9,4.85224]
[1742955481193,4.785,2061.2,2060.9,4.85224]
[1742955481398,4.785,2061.2,2061.1,0.758]
[1742955481786,4.785,2061.2,2061.1,5.60977]
[1742955482020,0.7654,2062.0,2061.4,0.758]
[1742955482215,5.32255596,2061.8,2061.5,4.85081]
[1742955482420,3.0,2061.6,2061.5,4.85081]
[1742955482714,3.0,2061.6,2061.4,5.60904]
[1742955482886,3.0,2061.6,2061.4,0.758]
[1742955483080,3.0,2061.6,2061.4,5.60905]
[1742955483286,3.0,2061.6,2061.4,5.60892]
[1742955483511,3.0,2061.6,2061.5,4.85083]
[1742955483717,4.792,2061.7,2061.6,0.758]
[1742955485531,3.0,2061.8,2061.6,5.60858]
[1742955485699,3.0,2061.8,2061.6,10.45902]
[1742955486031,0.7654,2062.2,2061.7,4.85025]
[1742955486198,0.7654,2062.2,2061.6,5.60844]
[1742955486199,7.10755596,2062.1,2061.6,5.60844]
[1742955486522,2.32255596,2061.9,2061.6,5.60844]
[1742955486903,2.32255596,2061.9,2061.6,10.45894]
[1742955487103,7.10755596,2062.1,2061.6,5.60844]
[1742955487430,7.10755596,2062.1,2061.8,4.85007]
[1742955487431,4.782,2062.0,2061.8,4.85007]
[1742955487814,4.782,2062.0,2061.7,4.85035]
[1742955488129,4.782,2062.0,2061.7,10.746515]
[1742955488308,4.782,2062.0,2061.7,5.896165]
[1742955488508,4.782,2062.0,2061.8,0.7644]
[1742955489328,4.778,2062.2,2061.8,0.7644]
[1742955489506,4.778,2062.2,2062.0,5.65769]
[1742955489902,4.778,2062.2,2062.0,5.65766]
[1742955490398,4.778,2062.2,2062.0,0.8081]
[1742955490599,3.0,2062.1,2062.0,0.8081]
[1742955490794,3.0,2062.1,2061.8,0.8081]
[1742955490998,3.0,2062.1,2061.8,1.9635385]
[1742955491297,3.0,2062.1,2061.8,6.8136585]
[1742955491713,3.0,2062.1,2061.8,11.6635785]
[1742955491915,3.0,2062.1,2061.9,4.84985]
[1742955492313,3.0,2062.1,2062.0,4.84966]
[1742955492519,4.778,2062.2,2062.0,5.65776]
[1742955492832,4.778,2062.2,2062.0,0.8081]
[1742955493309,0.55,2062.3,2062.2,0.8081]
[1742955493641,0.55,2062.3,2062.2,5.65729]
[1742955497542,0.55,2062.3,2062.2,0.8081]
[1742955498236,0.55,2062.3,2062.2,5.65729]
[1742955500238,0.55,2062.3,2061.8,3.8480437]
[1742955500239,8.315,2062.3,2061.8,6.0054685]
[1742955500441,8.315,2062.3,2061.9,4.84989]
[1742955501546,8.315,2062.3,2061.8,5.65817]
[1742955501745,8.311,2062.3,2061.9,4.84987]
[1742955501946,8.311,2062.3,2061.8,5.65817]
[1742955502126,8.311,2062.3,2061.8,11.559034]
[1742955502325,8.311,2062.3,2061.9,4.84989]
[1742955502547,8.311,2062.3,2061.8,6.708964]
[1742955502915,8.311,2062.3,2061.9,4.84977]
[1742955503131,8.311,2062.3,2062.0,4.84962]
[1742955503528,3.55,2062.3,2062.1,5.65747]
[1742955503860,0.55,2062.3,2062.2,4.84919]
[1742955504016,0.55,2062.3,2062.2,5.65729]
[1742955506536,0.55,2062.3,2062.2,20.15729]
[1742955507355,3.0,2062.7,2062.4,4.84864]
[1742955507645,3.0,2062.7,2062.4,6.864314]
[1742955507950,2.32255596,2062.6,2062.2,5.65724]
[1742955508832,2.32255596,2062.6,2062.3,4.84894]
[1742955509038,3.8068,2062.7,2062.3,4.84894]
[1742955510676,3.8068,2062.7,2062.3,4.84876]
[1742955511464,7.07155596,2062.9,2062.5,0.8079]
[1742955511755,3.0,2062.8,2062.5,20.15615]
[1742955511955,3.0,2062.8,2062.6,2.015615]
[1742955512751,3.0,2062.8,2062.5,5.65615]
[1742955515224,3.0,2062.8,2062.5,10.50445]
[1742955515430,3.0,2062.8,2062.6,4.84823]
[1742955515847,3.0,2062.8,2062.5,5.65615]
[1742955517460,3.0,2062.8,2062.4,4.84866]
[1742955517666,3.0,2062.8,2062.5,2.50055]
[1742955517862,3.0,2062.8,2062.6,4.8481]
[1742955518164,3.0,2062.8,2062.6,5.656]
[1742955518368,3.0,2063.1,2062.6,0.8079]
[1742955518528,9.1692,2063.2,2062.7,10.026455]
[1742955518732,2.32255596,2063.1,2062.7,5.178625]
[1742955518963,2.32255596,2063.1,2062.7,5.178855]
[1742955519229,11.49175596,2063.2,2062.8,4.84767]
[1742955519444,11.49175596,2063.2,2062.9,4.84752]
[1742955519639,10.68495596,2063.2,2063.0,0.969519]
[1742955520637,10.68495596,2063.2,2062.8,4.84759]
[1742955521240,3.6274,2063.2,2062.9,5.66764]
[1742955521441,3.6274,2063.2,2062.9,0.8201]
[1742955522244,3.6274,2063.2,2062.9,5.66762]
[1742955522445,3.6274,2063.2,2063.0,1.051522]
[1742955522768,0.6274,2063.2,2063.0,5.898642]
[1742955523667,0.6274,2063.2,2063.1,5.66717]
[1742955523867,0.7962,2064.3,2063.3,0.8201]
[1742955524068,4.84308,2064.8,2063.3,0.8201]
[1742955524069,0.7962,2063.8,2063.3,5.66661]
[1742955524270,2.32255596,2063.7,2063.1,0.8201]
[1742955524471,3.7962,2063.4,2063.1,2.1218912]
[1742955524644,3.7962,2063.4,2062.9,5.66763]
[1742955524835,3.7962,2063.4,2062.9,5.66747]
[1742955525040,3.7962,2063.4,2063.0,4.8473]
[1742955526584,7.16751596,2064.0,2063.1,4.84697]
[1742955526871,2.32255596,2063.5,2063.0,4.8473]
[1742955527076,5.32255596,2063.5,2063.0,4.8473]
[1742955527276,10.05955596,2063.5,2063.0,4.8473]
[1742955528286,10.05955596,2063.5,2063.1,4.84693]
[1742955528848,7.737,2063.5,2063.1,4.84693]
[1742955529069,3.0,2063.5,2063.1,4.84693]
[1742955529851,3.0,2063.5,2063.3,4.84641]
[1742955530056,3.0,2063.6,2063.3,5.66651]
[1742955530288,3.0,2063.6,2063.3,10.51301]
[1742955530792,3.0,2063.6,2063.3,5.66651]
[1742955531484,3.0,2063.6,2063.4,4.84625]
[1742955532179,7.73,2063.9,2063.5,4.84597]
[1742955532764,5.5272,2064.0,2063.5,4.84597]
[1742955533276,2.32255596,2063.9,2063.5,4.84605]
[1742955533478,5.32255596,2063.9,2063.5,4.84605]
[1742955535058,3.0,2063.9,2063.5,4.84605]
[1742955535258,3.0,2063.9,2063.6,0.5897326]
[1742955536651,3.0,2064.0,2063.7,0.7997]
[1742955537066,0.8039,2063.9,2063.6,0.5897326]
[1742955537680,3.0,2064.0,2063.6,0.5897326]
[1742955537858,3.0,2064.0,2063.7,0.54357026]
[1742955538188,3.0,2064.0,2063.6,5.4354426]
[1742955538550,5.32255596,2064.0,2063.6,0.5897326]
[1742955538792,5.32255596,2064.0,2063.5,4.84597]
[1742955539493,5.32255596,2064.0,2063.6,4.84586]
[1742955539694,8.5269,2064.1,2063.6,4.84586]
[1742955539871,8.5269,2064.1,2063.6,10.49131]
[1742955540071,8.5269,2064.1,2063.6,5.64545]
[1742955540271,8.5269,2064.1,2063.6,6.7997346]
[1742955540661,2.32255596,2064.0,2063.6,1.1542846]
[1742955540863,2.32255596,2064.0,2063.4,11.543486]
[1742955541062,2.32255596,2064.0,2063.4,1.051276]
[1742955541063,2.32255596,2063.8,2063.4,1.051276]
[1742955541493,3.8039,2063.7,2063.4,5.897626]
[1742955541660,0.8039,2063.9,2063.4,10.743836]
[1742955542263,3.8039,2063.9,2063.5,4.84601]
[1742955544199,8.5259,2064.1,2063.6,4.84573]
[1742955544393,5.32255596,2064.0,2063.5,5.9205166]
[1742955544596,6.12645596,2064.0,2063.5,4.84613]
[1742955544767,6.12645596,2064.0,2063.4,4.8463]
[1742955545302,6.12645596,2064.0,2063.4,4.84626]
[1742955545603,6.12645596,2064.0,2063.5,4.84604]
[1742955546312,3.8039,2064.0,2063.6,0.7997]
[1742955546468,3.8039,2064.0,2063.7,0.564574]
[1742955548408,3.0,2064.0,2063.7,0.564574]
[1742955548722,3.0,2064.0,2063.7,5.410224]
[1742955549021,3.0,2064.0,2063.7,0.564574]
[1742955549316,3.0,2064.0,2063.5,4.84603]
[1742955549523,0.7847,2063.9,2063.4,10.49242]
[1742955549694,0.7847,2063.9,2063.4,5.64596]
[1742955550089,0.7847,2063.9,2063.4,10.49223]
[1742955551927,0.7847,2063.9,2063.4,5.64595]
[1742955552126,0.7847,2063.9,2063.5,0.564595]
[1742955552438,3.7847,2063.9,2063.5,0.564595]
[1742955553137,0.7847,2063.9,2063.5,0.564595]
[1742955553730,0.7847,2063.9,2063.6,14.5]
[1742955554307,2.32255596,2063.8,2063.2,4.84663]
[1742955554521,3.7847,2063.3,2062.8,5.63084]
[1742955554836,2.32255596,2063.2,2062.7,9.69577]
[1742955555245,2.32255596,2063.2,2062.6,5.63131]
[1742955555410,2.32255596,2063.2,2062.8,14.5]
[1742955555606,2.32255596,2063.0,2062.8,14.5]
[1742955555938,0.7847,2063.1,2062.8,1.45]
[1742955556110,0.7847,2063.1,2062.6,4.84823]
[1742955556309,0.7847,2063.1,2062.7,14.5]
[1742955558042,2.32255596,2063.0,2062.7,14.5]
[1742955563648,2.32255596,2063.0,2062.4,5.63166]
[1742955563857,2.32255596,2063.0,2062.4,10.48024]
[1742955564054,2.32255596,2063.0,2062.5,5.896504]
[1742955564238,2.32255596,2063.0,2062.5,1.048024]
[1742955564440,2.32255596,2063.0,2062.5,5.896284]
[1742955564625,3.0,2062.9,2062.5,5.896284]
[1742955565025,3.0,2062.9,2062.6,4.84818]
[1742955565327,3.0,2062.9,2062.7,5.9223864]
[1742955565535,3.0,2062.9,2062.7,1.0744464]
[1742955565933,3.0,2062.9,2062.6,4.84812]
[1742955566824,3.0,2062.9,2062.6,9.69623]
[1742955567025,3.0,2062.9,2062.6,4.84811]
[1742955567741,3.0,2062.9,2062.7,4.84799]
[1742955568427,3.0,2062.9,2062.6,9.69624]
[1742955568624,3.0,2062.9,2062.7,0.969624]
[1742955569341,3.0,2062.9,2062.6,4.84806]
[1742955570259,3.0,2062.9,2062.6,9.69619]
[1742955570552,3.0,2062.9,2062.6,9.69616]
[1742955571058,3.0,2062.9,2062.6,4.84806]
[1742955571863,3.0,2062.9,2062.7,4.848]
[1742955572158,3.0,2062.9,2062.7,5.817606]
[1742955572461,3.0,2062.9,2062.7,0.969606]
[1742955573170,3.0,2062.7,2062.1,4.84933]
[1742955573328,3.0,2062.4,2062.1,4.84933]
[1742955573732,3.0,2062.4,2062.1,4.84927]
[1742955574144,3.0,2062.4,2062.2,4.84918]
[1742955574345,3.0,2062.4,2062.3,0.969845]
[1742955575064,0.8077,2062.5,2062.3,0.969845]
[1742955575654,0.8077,2062.5,2061.5,8.42586219]
[1742955575655,3.0,2062.4,2061.5,8.42586219]
[1742955575859,3.0,2062.2,2061.8,4.84999]
[1742955576058,3.0,2062.2,2061.9,4.84987]
[1742955576437,3.0,2062.2,2061.8,4.84999]
[1742955576637,3.0,2062.2,2061.9,0.484999]
[1742955577668,3.0,2062.2,2061.7,4.85025]
[1742955578962,3.0,2062.2,2061.7,9.70043]
[1742955579171,3.0,2062.2,2061.7,4.85018]
[1742955580068,3.0,2062.2,2061.8,4.85008]
[1742955580472,3.0,2062.2,2062.0,4.84955]
[1742955580772,0.8077,2062.3,2062.0,4.84955]
[1742955581073,0.8077,2062.3,2061.9,4.84984]
[1742955581273,0.8077,2062.3,2062.0,1.050332]
[1742955581442,3.0,2062.2,2062.0,1.050332]
[1742955582776,0.8077,2062.3,2062.0,5.899892]
[1742955582988,0.7692,2062.5,2062.0,1.050332]
[1742955583267,0.7692,2062.5,2061.9,2.32255596]
[1742955583268,4.706,2062.6,2062.3,4.84881]
[1742955583469,7.02855596,2062.6,2062.2,4.84918]
[1742955583652,7.02855596,2062.6,2062.1,5.65287]
[1742955583857,3.0,2062.5,2062.1,10.50215]
[1742955584173,3.0,2062.5,2062.2,4.84916]
[1742955584374,3.0,2062.5,2062.3,0.565266]
[1742955585158,0.7692,2062.4,2062.3,0.565266]
[1742955585482,3.0,2062.5,2062.3,5.414136]
[1742955585658,2.32255596,2062.6,2062.3,5.414136]
[1742955589568,2.32255596,2062.6,2062.4,4.84871]
[1742955589867,2.32255596,2062.6,2062.4,5.9553446]
[1742955590060,8.4702,2062.8,2062.5,4.84845]
[1742955590061,3.7692,2062.8,2062.5,4.84845]
[1742955590561,3.7692,2062.8,2062.4,1.1066346]
[1742955592783,3.7692,2062.8,2062.4,5.9553446]
[1742955592987,3.7692,2062.8,2062.5,1.08040846]
[1742955593189,0.802,2063.3,2062.6,3.11635596]
[1742955593393,4.707,2063.7,2063.0,0.7938]
[1742955593565,7.83455596,2063.8,2063.3,4.84644]
[1742955593765,3.0,2063.7,2063.3,0.969317]
[1742955594166,7.83455596,2063.8,2063.4,4.84623]
[1742955594588,7.83455596,2063.8,2063.3,4.84657]
[1742955594897,3.0,2063.7,2063.3,4.84657]
[1742955595214,3.0,2063.7,2063.4,4.84631]
[1742955595368,3.0,2063.7,2063.5,0.969288]
[1742955595568,7.83455596,2063.8,2063.5,0.969288]
[1742955595793,3.0,2063.7,2063.5,0.969288]
[1742955596571,7.03255596,2063.8,2063.5,5.815408]
[1742955596572,2.32255596,2063.8,2063.5,5.815408]
[1742955596770,3.0,2063.9,2063.5,5.815408]
[1742955596984,3.0,2063.9,2063.6,1.1451778]
[1742955597383,2.32255596,2063.8,2063.4,5.63641]
[1742955597570,2.32255596,2063.8,2063.4,0.7901]
[1742955597770,2.32255596,2063.8,2063.3,4.84659]
[1742955600075,2.32255596,2063.8,2063.2,5.63693]
[1742955600278,0.7881,2063.7,2063.2,5.63693]
[1742955600482,0.7881,2063.7,2063.3,1.0484]
[1742955600702,2.32255596,2063.6,2063.3,1.0484]
[1742955600906,3.7881,2063.3,2062.8,5.63768]
[1742955601073,3.7881,2063.3,2062.9,4.84753]
[1742955601496,3.7881,2063.3,2062.8,5.63784]
[1742955601692,3.7881,2063.3,2062.9,1.048584]
[1742955601907,3.7881,2063.3,2062.9,5.896114]
[1742955602273,3.7881,2063.3,2062.9,1.048584]
[1742955603881,3.7881,2063.3,2062.9,5.896114]
[1742955604090,3.7881,2063.3,2062.9,1.048584]
[1742955605107,3.7881,2063.3,2062.9,5.896124]
[1742955605297,3.7881,2063.3,2063.0,1.1533824]
[1742955605499,5.32255596,2063.2,2062.7,4.84797]
[1742955605795,2.32255596,2063.2,2062.6,5.63818]
[1742955607591,2.32255596,2063.2,2062.6,10.48627]
[1742955608316,5.32255596,2063.2,2062.6,5.63818]
[1742955608616,5.32255596,2063.2,2062.7,0.563818]
[1742955609007,2.32255596,2063.2,2062.7,5.411778]
[1742955615099,2.32255596,2063.2,2062.7,0.563818]
[1742955615735,2.32255596,2063.2,2062.7,5.411808]
[1742955615901,3.7881,2063.3,2062.7,10.259688]
[1742955616103,3.7881,2063.3,2062.8,1.1049788]
[1742955616523,0.7881,2063.3,2062.8,5.9527388]
[1742955616727,0.7881,2063.3,2062.9,4.84753]
[1742955617025,0.55,2063.7,2063.1,0.7962]
[1742955617230,0.55,2063.7,2063.4,4.84635]
[1742955617523,0.8288,2063.6,2062.8,1.1049788]
[1742955617706,5.32255596,2063.5,2062.9,14.5]
[1742955618426,5.32255596,2063.1,2062.4,0.7962]
[1742955618807,5.32255596,2063.1,2062.5,14.5]
[1742955622649,1.3788,2063.0,2062.5,14.5]
[1742955622806,1.3788,2063.0,2061.3,0.7962]
[1742955622807,3.0,2062.5,2061.3,0.7962]
[1742955623007,3.0,2062.5,2061.8,0.7962]
[1742955623210,3.0,2062.5,2061.9,14.8118756]
[1742955623519,0.8288,2062.6,2061.9,14.8118756]
[1742955623711,3.0,2062.5,2061.9,14.8118756]
[1742955624536,3.0,2062.5,2062.0,4.84966]
[1742955624738,3.0,2062.5,2062.1,4.84932]
[1742955624936,3.0,2062.5,2061.8,4.84997]
[1742955624937,2.32255596,2062.2,2061.8,4.84997]
[1742955625109,2.32255596,2062.2,2061.8,9.69998]
[1742955625513,2.32255596,2062.2,2061.7,4.85034]
[1742955625708,2.32255596,2062.0,2061.6,4.85046]
[1742955625945,0.7617,2062.1,2061.6,0.970135]
[1742955626243,0.7617,2062.1,2061.8,4.85001]
[1742955626244,3.0,2062.0,2061.8,4.85001]
[1742955627141,3.0,2062.0,2061.7,4.85026]
[1742955627744,3.0,2062.0,2061.6,14.5]
[1742955627943,3.0,2062.0,2061.7,4.85018]
[1742955628335,3.0,2062.0,2061.8,4.85012]
[1742955628540,3.0,2062.0,2061.8,7.27015]
[1742955628741,3.0,2062.0,2061.8,12.12017]
[1742955628939,3.0,2062.0,2061.8,7.27005]
[1742955629122,3.0,2062.0,2061.8,12.12007]
[1742955629445,3.0,2062.0,2061.8,7.27003]
[1742955630347,3.0,2062.0,2061.8,2.42003]
[1742955630547,3.0,2062.0,2061.8,7.27012]
[1742955631437,2.32255596,2062.3,2061.9,6.061934]
[1742955631438,0.7617,2062.3,2061.9,6.061934]
[1742955631638,3.0,2062.2,2061.9,6.11030693]
[1742955631954,3.0,2062.2,2062.0,4.84942]
[1742955632155,3.0,2062.2,2062.1,19.34942]
[1742955633930,3.0,2062.2,2062.1,14.5]
[1742955634558,0.7617,2062.5,2062.1,14.5]
[1742955634559,3.7617,2062.5,2062.1,14.5]
[1742955637231,3.7617,2062.5,2062.1,19.34939]
[1742955637469,3.7617,2062.5,2062.1,21.8904754]
[1742955637835,3.7617,2062.5,2062.2,4.84916]
[1742955638033,0.7617,2062.7,2062.3,0.04848604]
[1742955638233,4.683,2062.8,2062.7,4.84801]
[1742955638431,0.7617,2063.1,2062.7,5.817635]
[1742955638641,5.4457,2063.1,2062.8,4.84776]
[1742955638932,5.4467,2063.3,2062.8,4.84776]
[1742955639164,3.0,2063.2,2062.8,4.84776]
[1742955639366,5.4467,2063.3,2062.8,4.84776]
[1742955639642,3.0,2063.2,2062.9,4.84754]
[1742955639954,5.4467,2063.3,2062.8,4.84776]
[1742955640162,3.0,2063.2,2062.8,5.892631]
[1742955640833,3.7617,2063.3,2062.8,10.740281]
[1742955641268,3.7617,2063.3,2062.8,10.740191]
[1742955641448,3.7617,2063.3,2062.9,4.84751]
[1742955641648,3.7617,2063.3,2062.8,5.892521]
[1742955641649,2.32255596,2063.5,2063.0,4.84726]
[1742955641956,3.0,2063.4,2063.0,4.84726]
[1742955642160,3.0,2063.4,2063.0,9.69446]
[1742955642341,7.00255596,2063.5,2063.1,4.84704]
[1742955642539,7.00255596,2063.5,2063.1,19.34704]
[1742955642777,3.0,2063.4,2063.1,21.34066921]
[1742955643071,0.7975,2063.6,2063.1,21.34058921]
[1742955643366,3.0,2063.6,2063.2,4.89516276]
[1742955643569,3.0,2063.6,2063.2,4.8467]
[1742955644339,3.0,2063.6,2063.1,21.34058921]
[1742955644565,2.32255596,2063.5,2063.1,21.34058921]
[1742955645476,2.32255596,2063.5,2063.2,2.21661892]
[1742955646341,2.32255596,2063.5,2063.1,6.84058921]
[1742955647152,2.32255596,2063.5,2063.1,1.99362921]
[1742955647473,2.32255596,2063.5,2063.0,5.67286]
[1742955647873,2.32255596,2063.5,2063.0,0.8256]
[1742955647874,0.7975,2063.4,2063.0,0.8256]
[1742955648168,0.7975,2063.4,2063.0,5.67278]
[1742955649475,0.7975,2063.4,2063.1,4.84687]
[1742955649672,3.7975,2063.6,2063.3,4.8465]
[1742955649847,3.0,2063.6,2063.3,4.8465]
[1742955650461,0.55,2063.7,2063.3,0.48465]
[1742955650643,0.55,2063.7,2063.4,4.84637]
[1742955650843,0.55,2063.7,2063.4,4.84624]
[1742955651274,0.55,2063.7,2063.5,4.84602]
[1742955651845,0.55,2063.7,2063.4,4.84624]
[1742955653284,0.55,2063.7,2063.4,9.69243]
[1742955653576,0.55,2063.7,2063.4,7.265433]
[1742955654276,0.55,2063.7,2063.5,4.84602]
[1742955655060,0.55,2063.7,2063.6,4.8459]
[1742955655647,0.55,2063.7,2063.4,8.091203]
[1742955655876,0.55,2063.7,2063.4,2.419243]
[1742955656088,3.55,2063.7,2063.4,7.265593]
[1742955657662,0.55,2063.7,2063.5,1.2112063]
[1742955658287,0.55,2063.7,2063.5,6.0573063]
[1742955659477,0.55,2063.7,2063.5,6.0571663]
[1742955659708,0.55,2063.7,2063.6,5.6116]
[1742955661394,0.55,2063.7,2063.6,20.1116]
[1742955661704,0.55,2063.7,2063.6,23.45503693]
[1742955663293,0.55,2063.7,2063.6,25.77759289]